Workbook

Sheet Лист1

Sheet 6012
A1: УЧАСТОК ОКРАСОЧНЫХ РАБОТ
A3: Источник №6012
A4: (источник выбросов - неорганизованный)
A5: Координаты источника выбросов | B5: Х1, м | C5: Y1, м | D5: Х2, м | E5: Y2, м | F5: ширина, м | J5: 1
J6: 1
J7: 1
J8: 1
A9: ист.выделения 6012.01-22 | J9: 1
A10: источники выделения | E10: Время работы источника выделения, час/год | J10: 1
A11: наименование | C11: количество | J11: 1
A12: окрашенные поверхности | C12: 1 | E12: =B163 -> 368 | J12: 1
A13: краскопульт | E13: =B75 -> 2920 | J13: =C13 -> 0
J14: 1
A15: Выброс загрязняющих веществ в атмосферу производится посредством принудительной
A16: вентиляции со следующими рабочими параметрами:
A17: Высота устья вытяжной трубы: | C17: 8 | D17: м
A18: Диаметр устья вытяжной трубы: | C18: 0.5 | D18: м
A19: Часовая производительность выброса: | C19: 4100 | D19: куб.м/ч
A20: Секундная производительность выброса: | C20: =+ROUND(C19/3600,3) -> 1.139 | D20: куб.м/с
A22: При расчете выбросов загрязняющих веществ в атмосферу использованы следующие | J22: 1
A23: методические пособия: | J23: 1
A24: 1. "Методика расчета выделений(выбросов)загрязняющих веществ в атмосферу при | J24: 1
A25: нанесении лакокрасочных материалов(по величинам удельных выделений)";М.: | J25: 1
A26: НИИАтмосфера,1999г. | J26: 1
A27: 2. "Методическое пособие по расчету, нормированию и контролю выбросов загрязняющих | J27: 1
A28: веществ в атмосферный воздух";СПб, НИИ «Атмосфера»; 2005г | J28: 1
J29: 1
A30: Валовый выброс аэрозоля ЛКМ (Паок, т/г) определяется по формуле (5.1.(1)): | J30: 1
J31: 1
A32: Пaok = 0.4 · mk · ga · 10-5 | J32: 1
A33: Где: mк - масса краски используемой для покрытия за год , кг/год; | J33: 1
A34: ga - доля краски, потерянной в виде аэрозоля, % (табл. 2.). | J34: 1
A35: 0.4 - поправочный коэффициент, учитывающий оседание выделяемых веществ (разд. 1.6., п.18 (2)). | J35: 1
J36: 1
A37: Максимально разовый выброс аэрозоля (Gаок, г/с) определяется по формуле: | J37: 1
J38: 1
A39: Gаok = П аok · 106 / n · t · 3600 | J39: 1
J40: 1
A41: Где: t - "чистое" время работы в день в наиболее напряженный месяц, час; | J41: 1
A42: n - время работы участка в этот период, дней. | J42: 1
J43: 1
A44: Количество летучей части каждого компонента (Ппарок, т/г) определяется по формуле | J44: 1
A45: (5.2., 5.3.(1)): | J45: 1
A46: Ппарok = mk · fp · (g'p + g'' p) / 107 | J46: 1
A47: Где: mк - масса краски используемой для покрытия за год за вычетом краски перешедшей | J47: 1
A48: в аэрозоль при нанесении на поверхность , кг/год; | J48: 1
A49: fр - доля летучей части растворителя в ЛКМ, % (табл. 1.); | J49: 1
A50: g'p – доля растворителя в ЛКМ, выделившегося из ЛКМ при окраске , % (табл. 2.); | J50: 1
A51: g''p – доля растворителя в ЛКМ, выделившегося из ЛКМ при сушке, % (табл. 2.); | J51: 1
J52: 1
A53: Валовый выброс i-го компонента (Мi, т/г) летучей части ЛКМ определяется по формуле: | J53: 1
J54: 1
A55: Mi =Ппарok · fi ·10-2 | J55: 1
A56: Где: fi- процентное содержание i-го компонента в летучей части ЛКМ, %. | J56: 1
J57: 1
A58: Максимально разовый выброс загрязняющего вещества (Gi, г/с) определяется | J58: 1
A59: по формуле: | J59: 1
A60: Gi = Mi ∙ 106 / 3600 ∙ n ∙ t | J60: 1
J61: 1
A62: Где: t - число рабочих часов в день в наиболее напряженный месяц, с учетом времени | J62: 1
A63: высыхания краски, час; | J63: 1
A64: n - время работы участка в этот период, дней. | J64: =+C67 -> 600
J65: =+J64 -> 600
A66: Тип ЛКМ - | B66: Грунтовка ПФ-020 | J66: =+J65 -> 600
A67: Годовой расход ЛКМ - | C67: 600 | D67: кг/год | J67: =+J66 -> 600
A68: способ нанесения на поверхность - | C68: кисть, валик | J68: =+J67 -> 600
A69: общее количество краскопультов - | D69: шт | J69: =C69 -> 0
A70: количество поверхностей, обрабатываемых одновременно на одной площадке - | G70: 1 | H70: шт. | J70: =+J66 -> 600
J71: =+J70 -> 600
A72: "Чистое" время работы окрасочного оборудования при нанесении ЛКМ на поверхность: | J72: 600
A73: в год - | B73: 365 | C73: дн/год | J73: 600
A74: в сутки - | B74: 8 | C74: час/сут | J74: 600
A75: в год - | B75: =+B73*B74 -> 2920 | C75: час/год | J75: 600
A76: Время работы с учетом времени высыхания краски: | J76: 600
A77: в год - | B77: =+B73 -> 365 | C77: дн/год | J77: 600
A78: в сутки - | B78: 2 | C78: час/сут | J78: 600
A79: в год - | B79: =+B77*B78 -> 730 | C79: час/год | J79: =+J78 -> 600
J80: =+J79 -> 600
A81: Валовый выброс аэрозоля: | J81: =+B83 -> 0
A82: mк= | B82: =+C67 -> 600 | C82: кг | J82: =+J81 -> 0 | K82: =0.4*B82*B83/100000 -> 0
A83: ga = | C83: % (для пневмораспыления) | J83: =+J82 -> 0
A84: Аэрозоль краски | B84: Паок= | C84: =+"0.4 * "&TEXT(B82,"0.0")&" * "&TEXT(B83,"0.0")&" /100000 = "&TEXT(0.4*B82*B83/100000,"0.0000000")&" т/г" -> 0.4 * 600.0 * 0.0 /100000 = 0.0000000 т/г | J84: =+J83 -> 0
J85: =+J84 -> 0
A86: Валовый выброс летучей части растворителя: | J86: =+B90 -> 600
A87: fр= | B87: 43 | C87: % | J87: =+J86 -> 600
A88: g'p= | B88: 25 | C88: % | J88: 600
A89: g''p= | B89: 75 | C89: % | J89: =B87*(B88+B89)*B90/10000000 -> 0.258
A90: mк= | B90: =+C67-K82*1000 -> 600 | C90: кг | J90: 0.258
A91: Летучая часть | B91: Ппарок= | C91: =+TEXT(B90,"0.0")&" * "&TEXT(B87,"0.0")&" * ("&TEXT(B88,"0.0")&" + "&TEXT(B89,"0.0")&") / 10000000 = "&TEXT(B87*(B88+B89)*B90/10000000,"0.000000")&" т/г" -> 600.0 * 43.0 * (25.0 + 75.0) / 10000000 = 0.258000 т/г | J91: 0.258
J92: 0.258
A93: Валовый выброс компонентов растворителя: | J93: 0.258
A94: Ацетон | B94: f = | C94: 0 | D94: % | J94: =+C94 -> 0
B95: М= | C95: =+TEXT(J$89,"0.0000")&" * "&TEXT(C94,"0.000")&" / 100 = "&TEXT(J$89*C94/100,"0.000000")&" т/г" -> 0.2580 * 0.000 / 100 = 0.000000 т/г | J95: =+C94 -> 0
A96: Бутилацетат | B96: f = | C96: 0 | D96: % | J96: =+C96 -> 0
B97: М= | C97: =+TEXT(J$89,"0.0000")&" * "&TEXT(C96,"0.000")&" / 100 = "&TEXT(J$89*C96/100,"0.000000")&" т/г" -> 0.2580 * 0.000 / 100 = 0.000000 т/г | J97: =+C96 -> 0
A98: Спирт n-бутиловый | B98: f = | C98: 0 | D98: % | J98: =+C98 -> 0
B99: М= | C99: =+TEXT(J$89,"0.0000")&" * "&TEXT(C98,"0.000")&" / 100 = "&TEXT(J$89*C98/100,"0.000000")&" т/г" -> 0.2580 * 0.000 / 100 = 0.000000 т/г | J99: =+C98 -> 0
A100: Спирт этиловый | B100: f = | C100: 0 | D100: % | J100: =+C100 -> 0
B101: М= | C101: =+TEXT(J$89,"0.0000")&" * "&TEXT(C100,"0.000")&" / 100 = "&TEXT(J$89*C100/100,"0.000000")&" т/г" -> 0.2580 * 0.000 / 100 = 0.000000 т/г | J101: =+C100 -> 0
A102: Этилцеллозольв | B102: f = | C102: 0 | D102: % | J102: =+C102 -> 0
B103: М= | C103: =+TEXT(J$89,"0.0000")&" * "&TEXT(C102,"0.000")&" / 100 = "&TEXT(J$89*C102/100,"0.000000")&" т/г" -> 0.2580 * 0.000 / 100 = 0.000000 т/г | J103: =+C102 -> 0
A104: Толуол | B104: f = | C104: 0 | D104: % | J104: =+C104 -> 0
B105: М= | C105: =+TEXT(J$89,"0.0000")&" * "&TEXT(C104,"0.000")&" / 100 = "&TEXT(J$89*C104/100,"0.000000")&" т/г" -> 0.2580 * 0.000 / 100 = 0.000000 т/г | J105: =+C104 -> 0
A106: Ксилол | B106: f = | C106: 100 | D106: % | J106: =+C106 -> 100
B107: М= | C107: =+TEXT(J$89,"0.0000")&" * "&TEXT(C106,"0.000")&" / 100 = "&TEXT(J$89*C106/100,"0.000000")&" т/г" -> 0.2580 * 100.000 / 100 = 0.258000 т/г | J107: =+C106 -> 100
A108: Уайт-спирит | B108: f = | C108: 0 | D108: % | J108: =+C108 -> 0
B109: М= | C109: =+TEXT(J$89,"0.0000")&" * "&TEXT(C108,"0.000")&" / 100 = "&TEXT(J$89*C108/100,"0.0000")&" т/г" -> 0.2580 * 0.000 / 100 = 0.0000 т/г | J109: =+C108 -> 0
A110: Этилацетат | B110: f = | C110: 0 | D110: % | J110: =+C110 -> 0
B111: М= | C111: =+TEXT(J$89,"0.0000")&" * "&TEXT(C110,"0.000")&" / 100 = "&TEXT(J$89*C110/100,"0.0000")&" т/г" -> 0.2580 * 0.000 / 100 = 0.0000 т/г | J111: =+C110 -> 0
A112: Сольвент | B112: f = | C112: 0 | D112: % | J112: =+C112 -> 0
B113: М= | C113: =+TEXT(J$89,"0.0000")&" * "&TEXT(C112,"0.000")&" / 100 = "&TEXT(J$89*C112/100,"0.0000")&" т/г" -> 0.2580 * 0.000 / 100 = 0.0000 т/г | J113: =+C112 -> 0
J114: =+J93 -> 0.258
A115: Максимально разовый выброс загрязняющих веществ: | J115: =+J114 -> 0.258
A116: t= | B116: =+B78 -> 2 | C116: час. | J116: =+J115 -> 0.258
A117: n= | B117: =+B77 -> 365 | C117: дн. | J117: =+J116 -> 0.258
A118: количество поверхностей, обрабатываемых одновременно на одной площадке - | G118: =+G70 -> 1 | H118: шт. | J118: =+J117 -> 0.258
J119: =+J118 -> 0.258
A120: =+A138 -> Ацетон | B120: G= | C120: =+TEXT(E138,"0.000000")&" * 1000000 / (3600 * "&TEXT(B$116,"0.0")&" * "&TEXT(B$117,"0.0")&" ) * "&TEXT(G$118,"0")&" = "&TEXT(G$118*E138*1000000/3600/B$116/B$117,"0.0000000")&" г/с " -> 0.000000 * 1000000 / (3600 * 2.0 * 365.0 ) * 1 = 0.0000000 г/с | J120: =+C138+E138 -> 0
A121: Бутилацетат | B121: G= | C121: 0.000000 * 1000000 / (3600 * 2.0 * 365.0 ) * 1 = 0.0000000 г/с | J121: =+C139+E139 -> 0
A122: Спирт n-бутиловый | B122: G= | C122: 0.000000 * 1000000 / (3600 * 2.0 * 365.0 ) * 1 = 0.0000000 г/с | J122: 0
A123: Спирт этиловый | B123: G= | C123: 0.000000 * 1000000 / (3600 * 2.0 * 365.0 ) * 1 = 0.0000000 г/с | J123: 0
A124: Этилцеллозольв | B124: G= | C124: 0.000000 * 1000000 / (3600 * 2.0 * 365.0 ) * 1 = 0.0000000 г/с | J124: 0
A125: Толуол | B125: G= | C125: 0.000000 * 1000000 / (3600 * 2.0 * 365.0 ) * 1 = 0.0000000 г/с | J125: 0
A126: Ксилол | B126: G= | C126: =+TEXT(E144,"0.000000")&" * 1000000 / (3600 * "&TEXT(B$116,"0.0")&" * "&TEXT(B$117,"0.0")&" ) * "&TEXT(G$118,"0")&" = "&TEXT(G$118*E144*1000000/3600/B$116/B$117,"0.0000000")&" г/с " -> 0.258000 * 1000000 / (3600 * 2.0 * 365.0 ) * 1 = 0.0981735 г/с | J126: 0.3561735
A127: Уайт-спирит | B127: G= | C127: 0.000000 * 1000000 / (3600 * 2.0 * 365.0 ) * 1 = 0.0000000 г/с | J127: 0
A128: Этилацетат | B128: G= | C128: 0.000000 * 1000000 / (3600 * 2.0 * 365.0 ) * 1 = 0.0000000 г/с | J128: 0
A129: Сольвент | B129: G= | C129: 0.000000 * 1000000 / (3600 * 2.0 * 365.0 ) * 1 = 0.0000000 г/с | J129: 0
J130: =J81 -> 0
A131: При расчете выделения аэрозоля краски учитывается "чистое" времы работы краскопульта: | J131: =+J130 -> 0
A132: t= | B132: =+B74 -> 8 | C132: час. | J132: =+J131 -> 0
A133: n= | B133: =+B73 -> 365 | C133: дн. | J133: =+J132 -> 0
A134: =+A148 -> Аэрозоль краски | B134: Gаок= | C134: =+TEXT(K82,"0.000")&" * 1000000 / (3600 * "&TEXT(B$132,"0.0")&" * "&TEXT(B$133,"0.0")&") * "&TEXT(G$118,"0")&" = "&TEXT(G118*K82*1000000/3600/B$132/B$133,"0.0000000")&" г/с " -> 0.000 * 1000000 / (3600 * 8.0 * 365.0) * 1 = 0.0000000 г/с | J134: =J133 -> 0
J135: =J136 -> 0.3561735
A136: Расчет валовых (Mi, т/г) и максимально-разовых (Gi, г/с) выбросов сведен в таблицу: | J136: =+SUM(J138:J148) -> 0.3561735
A137: Наименование ЗВ | B137: Код ЗВ | C137: Gi, г/с | E137: Мi, т/г | J137: =+J136 -> 0.3561735
A138: Ацетон | B138: 1401 | C138: =+ROUND(G$118*E138*10^6/(3600*B$116*B$117),7) -> 0 | E138: =ROUND(J$89*C94/100,6) -> 0 | J138: =+C138+E138 -> 0
A139: Бутилацетат | B139: 1210 | C139: 0 | E139: =ROUND(J$89*C96/100,6) -> 0 | J139: 0
A140: Спирт n-бутиловый | B140: 1042 | C140: 0 | E140: =ROUND(J$89*C98/100,6) -> 0 | J140: 0
A141: Спирт этиловый | B141: 1061 | C141: 0 | E141: =ROUND(J$89*C100/100,6) -> 0 | J141: 0
A142: Этилцеллозольв | B142: 1119 | C142: 0 | E142: =ROUND(J$89*C102/100,6) -> 0 | J142: 0
A143: Толуол | B143: 621 | C143: 0 | E143: =ROUND(J$89*C104/100,6) -> 0 | J143: 0
A144: Ксилол | B144: 616 | C144: 0.0981735 | E144: =ROUND(J$89*C106/100,6) -> 0.258 | J144: 0.3561735
A145: Уайт-спирит | B145: 2752 | C145: 0 | E145: =ROUND(J$89*C108/100,6) -> 0 | J145: 0
A146: Этилацетат | B146: 1240 | C146: 0 | E146: =ROUND(J$89*C110/100,6) -> 0 | J146: 0
A147: Сольвент | B147: 2750 | C147: 0 | E147: =ROUND(J$89*C112/100,6) -> 0 | J147: 0
A148: Аэрозоль краски | B148: 2902 | C148: =+ROUND(G$118*E148*10^6/(3600*B132*B133),7) -> 0 | E148: =+K82 -> 0 | J148: 0
J149: =+J136 -> 0.3561735
A150: Тип ЛКМ - | B150: эмаль ПФ-115 | J150: =+C151 -> 300
A151: Годовой расход ЛКМ - | C151: 300 | D151: кг/год | J151: =+J150 -> 300
A152: способ нанесения на поверхность - | C152: кисть, валик | J152: =+J151 -> 300
A153: общее количество краскопультов - | D153: шт | J153: =C153 -> 0
A154: количество поверхностей, обрабатываемых одновременно на одной площадке - | G154: 1 | H154: шт. | J154: =+J150 -> 300
J155: =+J154 -> 300
A156: "Чистое" время работы окрасочного оборудования при нанесении ЛКМ на поверхность: | J156: 300
A157: в год - | B157: 92 | C157: дн/год | J157: 300
A158: в сутки - | B158: 4 | C158: час/сут | J158: 300
A159: в год - | B159: =+B157*B158 -> 368 | C159: час/год | J159: 300
A160: Время работы с учетом времени высыхания краски: | J160: 300
A161: в год - | B161: =+B157 -> 92 | C161: дн/год | J161: 300
A162: в сутки - | B162: 4 | C162: час/сут | J162: 300
A163: в год - | B163: =+B161*B162 -> 368 | C163: час/год | J163: =+J162 -> 300
J164: =+J163 -> 300
A165: Валовый выброс аэрозоля: | J165: =+B167 -> 0
A166: mк= | B166: =+C151 -> 300 | C166: кг | J166: =+J165 -> 0 | K166: =0.4*B166*B167/100000 -> 0
A167: ga = | C167: % (для пневмораспыления) | J167: =+J166 -> 0
A168: Аэрозоль краски | B168: Паок= | C168: =+"0.4 * "&TEXT(B166,"0.0")&" * "&TEXT(B167,"0.0")&" /100000 = "&TEXT(0.4*B166*B167/100000,"0.0000000")&" т/г" -> 0.4 * 300.0 * 0.0 /100000 = 0.0000000 т/г | J168: =+J167 -> 0
J169: =+J168 -> 0
A170: Валовый выброс летучей части растворителя: | J170: =+B174 -> 300
A171: fр= | B171: 45 | C171: % | J171: =+J170 -> 300
A172: g'p= | B172: 25 | C172: % | J172: 300
A173: g''p= | B173: 75 | C173: % | J173: =B171*(B172+B173)*B174/10000000 -> 0.135
A174: mк= | B174: =+C151-K166*1000 -> 300 | C174: кг | J174: 0.135
A175: Летучая часть | B175: Ппарок= | C175: =+TEXT(B174,"0.000")&" * "&TEXT(B171,"0.0")&" * ("&TEXT(B172,"0.0")&" + "&TEXT(B173,"0.0")&") / 10000000 = "&TEXT(B171*(B172+B173)*B174/10000000,"0.000000")&" т/г" -> 300.000 * 45.0 * (25.0 + 75.0) / 10000000 = 0.135000 т/г | J175: 0.135
J176: 0.135
A177: Валовый выброс компонентов растворителя: | J177: 0.135
A178: Ацетон | B178: f = | C178: 0 | D178: % | J178: =+C178 -> 0
B179: М= | C179: =+TEXT(J$173,"0.0000")&" * "&TEXT(C178,"0.000")&" / 100 = "&TEXT(J$173*C178/100,"0.000000")&" т/г" -> 0.1350 * 0.000 / 100 = 0.000000 т/г | J179: =+C178 -> 0
A180: Бутилацетат | B180: f = | C180: 0 | D180: % | J180: =+C180 -> 0
B181: М= | C181: =+TEXT(J$173,"0.0000")&" * "&TEXT(C180,"0.000")&" / 100 = "&TEXT(J$173*C180/100,"0.000000")&" т/г" -> 0.1350 * 0.000 / 100 = 0.000000 т/г | J181: =+C180 -> 0
A182: Спирт n-бутиловый | B182: f = | C182: 0 | D182: % | J182: =+C182 -> 0
B183: М= | C183: =+TEXT(J$173,"0.0000")&" * "&TEXT(C182,"0.000")&" / 100 = "&TEXT(J$173*C182/100,"0.000000")&" т/г" -> 0.1350 * 0.000 / 100 = 0.000000 т/г | J183: =+C182 -> 0
A184: Спирт этиловый | B184: f = | C184: 0 | D184: % | J184: =+C184 -> 0
B185: М= | C185: =+TEXT(J$173,"0.0000")&" * "&TEXT(C184,"0.000")&" / 100 = "&TEXT(J$173*C184/100,"0.000000")&" т/г" -> 0.1350 * 0.000 / 100 = 0.000000 т/г | J185: =+C184 -> 0
A186: Этилцеллозольв | B186: f = | C186: 0 | D186: % | J186: =+C186 -> 0
B187: М= | C187: =+TEXT(J$173,"0.0000")&" * "&TEXT(C186,"0.000")&" / 100 = "&TEXT(J$173*C186/100,"0.000000")&" т/г" -> 0.1350 * 0.000 / 100 = 0.000000 т/г | J187: =+C186 -> 0
A188: Толуол | B188: f = | C188: 0 | D188: % | J188: =+C188 -> 0
B189: М= | C189: =+TEXT(J$173,"0.0000")&" * "&TEXT(C188,"0.000")&" / 100 = "&TEXT(J$173*C188/100,"0.000000")&" т/г" -> 0.1350 * 0.000 / 100 = 0.000000 т/г | J189: =+C188 -> 0
A190: Ксилол | B190: f = | C190: 50 | D190: % | J190: =+C190 -> 50
B191: М= | C191: =+TEXT(J$173,"0.0000")&" * "&TEXT(C190,"0.000")&" / 100 = "&TEXT(J$173*C190/100,"0.000000")&" т/г" -> 0.1350 * 50.000 / 100 = 0.067500 т/г | J191: =+C190 -> 50
A192: Уайт-спирит | B192: f = | C192: 50 | D192: % | J192: =+C192 -> 50
B193: М= | C193: =+TEXT(J$173,"0.0000")&" * "&TEXT(C192,"0.000")&" / 100 = "&TEXT(J$173*C192/100,"0.000000")&" т/г" -> 0.1350 * 50.000 / 100 = 0.067500 т/г | J193: =+C192 -> 50
A194: Этилацетат | B194: f = | C194: 0 | D194: % | J194: =+C194 -> 0
B195: М= | C195: =+TEXT(J$173,"0.0000")&" * "&TEXT(C194,"0.000")&" / 100 = "&TEXT(J$173*C194/100,"0.0000")&" т/г" -> 0.1350 * 0.000 / 100 = 0.0000 т/г | J195: =+C194 -> 0
A196: Сольвент | B196: f = | C196: 0 | D196: % | J196: =+C196 -> 0
B197: М= | C197: =+TEXT(J$173,"0.0000")&" * "&TEXT(C196,"0.000")&" / 100 = "&TEXT(J$173*C196/100,"0.0000")&" т/г" -> 0.1350 * 0.000 / 100 = 0.0000 т/г | J197: =+C196 -> 0
J198: =+J177 -> 0.135
A199: Максимально разовый выброс загрязняющих веществ: | J199: =+J198 -> 0.135
A200: t= | B200: =+B162 -> 4 | C200: час. | J200: =+J199 -> 0.135
A201: n= | B201: =+B161 -> 92 | C201: дн. | J201: =+J200 -> 0.135
A202: количество поверхностей, обрабатываемых одновременно на одной площадке - | G202: =+G154 -> 1 | H202: шт. | J202: =+J201 -> 0.135
... 572 more rows
